fUSD/lending_fUSD_20250503
["ID","MTS","AMOUNT","RATE_DAILY","PERIOD"]
[359692889,1746257444775,-500.0,0.00019973,2]
[359692890,1746257444784,-506.33875235,0.00019973,2]
[359692891,1746257444794,-501.15741321,0.00019973,2]
[359692892,1746257444804,-500.0,0.00019973,2]
[359692893,1746257444813,-500.0,0.00019973,2]
[359692894,1746257444823,-959.0,0.00019973,2]
[359692895,1746257444832,-501.21994559,0.00019973,2]
[359692896,1746257444842,-160.45164529,0.00019973,2]
[359692897,1746257444852,-539.24803438,0.00019973,2]
[359692898,1746257444862,-500.0,0.00019973,2]
[359692899,1746257444871,-500.0,0.00019973,2]
[359692900,1746257444881,-502.06385384,0.00019973,2]
[359692901,1746257444890,-500.0,0.00019973,2]
[359692902,1746257444900,-303.17184781,0.00019973,2]
[359692903,1746257444909,-500.0,0.00019973,2]
[359692904,1746257444918,-517.26161729,0.00019973,2]
[359692905,1746257444927,-500.0,0.00019973,2]
[359692906,1746257444937,-505.26039964,0.00019973,2]
[359692907,1746257444947,-243.83231524,0.00019973,2]
[359692908,1746257444958,-160.20238278,0.00019973,2]
[359692909,1746257444967,-152.63342926,0.00019973,2]
[359692910,1746257444977,-500.8951883,0.00019973,2]
[359692911,1746257444987,-151.0,0.00019976,2]
[359692912,1746257444997,-150.0,0.00019976,2]
[359692913,1746257445007,-1285.37923747,0.00019976,2]
[359692914,1746257445017,-38721.24492483,0.0001998,2]
[359692915,1746257445026,-40665.28617599,0.00019985,2]
[359692916,1746257445037,-2132.0,0.00019986,2]
[359692917,1746257445047,-567590.7700407,0.00019986,2]
[359692918,1746257445056,-17835.8432283,0.00019986,2]
[359692919,1746257445066,-42919.2693671,0.00019986,2]
[359692920,1746257445076,-150.0,0.00019987,2]
[359692921,1746257445086,-150.0,0.00019988,2]
[359692922,1746257445096,-1285.37923747,0.0001999,2]
[359692923,1746257445106,-1285.37923747,0.0001999,2]
[359692924,1746257445116,-150.0,0.00019993,2]
[359692925,1746257445126,-500.0,0.00019999,2]
[359692926,1746257445136,-679.71892541,0.00019999,2]
[359692927,1746257445146,-500.0,0.00019999,2]
[359692928,1746257445155,-300.0,0.00019999,2]
[359692929,1746257445165,-300.0,0.00019999,2]
[359692930,1746257445175,-300.0,0.00019999,2]
[359692931,1746257445184,-3975.69203346,0.00019999,2]
[359692932,1746257445195,-3556.82893141,0.00019999,2]
[359692933,1746257445204,-66823.38330018,0.00019999,2]
[359692934,1746257445214,-271.4745152,0.0002,2]
[359692935,1746257445223,-609383.97534492,0.0002,2]
[359692936,1746257445233,-2554660.7763874,0.0002,2]
[359692943,1746257446248,-866.93848955,0.00019739,2]
[359692944,1746257446257,-159.40114631,0.00019745,2]
[359692945,1746257446267,-150.0,0.00019777,2]
[359692946,1746257446276,-450.0,0.00019792,2]
[359692947,1746257446286,-450.0,0.00019792,2]
[359692948,1746257446295,-450.0,0.00019792,2]
[359692949,1746257446305,-450.0,0.00019792,2]
[359692950,1746257446315,-504.98,0.00019793,2]
[359692951,1746257446324,-150.0,0.00019844,2]
[359692952,1746257446333,-300.0,0.00019868,2]
[359692953,1746257446342,-151.0,0.00019962,2]
[359692954,1746257446352,-150.0,0.0001999,2]
[359692955,1746257446361,-71300.80828359,0.0002,2]
[359692956,1746257446371,-3950.0,0.0002,2]
[359692957,1746257446380,-1252.31465242,0.0002,2]
[359692958,1746257446389,-11848.01589523,0.0002,2]
[359692959,1746257446399,-1010.46258128,0.0002,2]
[359692960,1746257446408,-1763.46008516,0.0002,2]
[359692961,1746257446417,-88982.54112,0.0002,2]
[359692962,1746257446427,-1000.0,0.0002,2]
[359692963,1746257446436,-1000.0,0.0002,2]
[359692964,1746257446446,-1000.0,0.0002,2]
[359692965,1746257446456,-1000.0,0.0002,2]
[359692966,1746257446465,-1000.0,0.0002,2]
[359692967,1746257446474,-1000.0,0.0002,2]
[359692968,1746257446483,-1000.0,0.0002,2]
[359692969,1746257446493,-1000.0,0.0002,2]
[359692970,1746257446502,-1000.0,0.0002,2]
[359692971,1746257446511,-1000.0,0.0002,2]
[359692972,1746257446521,-1000.0,0.0002,2]
[359692973,1746257446531,-1000.0,0.0002,2]
[359692974,1746257446540,-1000.0,0.0002,2]
[359692975,1746257446550,-1000.0,0.0002,2]
[359692976,1746257446560,-1000.0,0.0002,2]
[359692977,1746257446569,-1000.0,0.0002,2]
[359692978,1746257446578,-1000.0,0.0002,2]
[359692979,1746257446588,-1000.0,0.0002,2]
[359692980,1746257446597,-1000.0,0.0002,2]
[359692981,1746257446607,-1000.0,0.0002,2]
[359692982,1746257446616,-1000.0,0.0002,2]
[359692983,1746257446626,-1000.0,0.0002,2]
[359692984,1746257446635,-1000.0,0.0002,2]
[359692985,1746257446645,-1000.0,0.0002,2]
[359692986,1746257446654,-1000.0,0.0002,2]
[359692987,1746257446664,-1000.0,0.0002,2]
[359692988,1746257446673,-1000.0,0.0002,2]
[359692989,1746257446683,-1000.0,0.0002,2]
[359692990,1746257446693,-1000.0,0.0002,2]
[359692991,1746257446704,-1000.0,0.0002,2]
[359692992,1746257446714,-1000.0,0.0002,2]
[359692993,1746257446723,-728.7354737,0.0002,2]
[359692994,1746257446732,-1824.25,0.0002,2]
[359692995,1746257446742,-640659.86046791,0.0002,2]
[359692996,1746257496953,194.57476,0.0001955,2]
[359692997,1746257497999,150.0,0.00032,60]
[359692998,1746257513555,194.57476,0.0001955,2]
[359692999,1746257527254,194.57476,0.0001955,2]
[359693000,1746257545058,221.23682881,0.00019593,2]
[359693001,1746257567794,2778.76317119,0.00019,2]
[359693002,1746257567817,173.5294043,0.00019,2]
[359693003,1746257573793,2826.4705957,0.00019,2]
[359693004,1746257573816,173.5294043,0.00019,2]
[359693006,1746257590504,173.5294043,0.00019,2]
[359693007,1746257596572,173.5294043,0.00019,2]
[359693008,1746257600687,194.57476,0.0001955,2]
[359693009,1746257601382,173.5294043,0.00019,2]
[359693010,1746257606944,173.5294043,0.00019,2]
[359693011,1746257613170,194.57476,0.0001955,2]
[359693012,1746257614056,173.5294043,0.00019,2]
[359693013,1746257618267,173.5294043,0.00019,2]
[359693014,1746257622045,173.5294043,0.00019,2]
[359693015,1746257625419,173.5294043,0.00019,2]
[359693016,1746257629721,173.5294043,0.00019,2]
[359693017,1746257636961,173.5294043,0.00019,2]
[359693018,1746257642961,173.5294043,0.00019,2]
[359693019,1746257647799,173.5294043,0.00019,2]
[359693020,1746257649314,192.04213312,0.00019,2]
[359693021,1746257652060,162.92609098,0.00019,2]
[359693022,1746257652091,10.60331332,0.00019,2]
[359693023,1746257655356,173.5294043,0.00019,2]
[359693024,1746257659206,162.92609098,0.00019,2]
[359693025,1746257680274,192.04213312,0.00019,2]
[359693026,1746257852886,282935.20138376,0.00032877,60]
[359693027,1746257856893,194.57476,0.00019495,2]
[359693028,1746257856975,-255.58733886,0.0001955,2]
[359693029,1746257862054,-256.61711393,0.0001955,2]
[359693030,1746257864858,-320.55,0.0001955,2]
[359693031,1746257866727,250.0,0.00017,2]
[359693032,1746257867409,-295.72,0.0001955,2]
[359693033,1746257867812,300.0,0.00019,2]
[359693034,1746257870779,250453.79861624,0.0003,30]
[359693035,1746257872513,-172.46272641,0.0001955,2]
[359693036,1746257878236,-154.28,0.0001955,2]
[359693037,1746257884400,-300.0,0.00019549,2]
[359693038,1746257884422,-158.85809824,0.0001955,2]
[359693039,1746257888308,-157.05497622,0.0001955,2]
[359693040,1746257902184,2089.13812544,0.00018,2]
[359693041,1746257902650,-277.0,0.0001955,2]
[359693043,1746257908483,-327.86212638,0.0001955,2]
[359693044,1746257913222,-531.03717717,0.0001955,2]
[359693045,1746257916120,-310.72,0.0001955,2]
[359693046,1746257921162,-462.72,0.0001955,2]
[359693047,1746257924363,-152.0,0.0001955,2]
[359693048,1746257927983,-291.27216806,0.0001955,2]
[359693049,1746257932326,-168.69719059,0.0001955,2]
[359693050,1746257936084,-156.34813292,0.0001955,2]
[359693051,1746257939958,-300.0,0.0001955,2]
[359693052,1746257945329,-300.0,0.00019549,2]
[359693053,1746257945353,-18.26483664,0.0001955,2]
[359693054,1746257955004,-167.20766283,0.0001955,2]
[359693055,1746257960577,-207.4,0.0001955,2]
[359693056,1746258018013,3029.57,0.0003,30]
[359693057,1746258062582,258.21,0.00016917,2]
[359693058,1746258062769,258.21,0.00019181,2]
[359693059,1746258076803,6007.48,0.00018835,2]
[359693060,1746258101677,17900.0,0.00018785,2]
[359693061,1746258121920,221.23682881,0.0001945,2]
[359693062,1746258129600,166.66,0.000194,2]
[359693063,1746258140028,315.0,0.000296,30]
[359693064,1746258204085,250.0,0.00018789,7]
[359693065,1746258284305,-420.80045303,0.00019511,2]
[359693066,1746258293741,-300.0,0.00019511,2]
[359693067,1746258298634,-77.4691762,0.00019511,2]
[359693072,1746258632488,-151.0,0.00019549,2]
[359693073,1746258632499,-200.0,0.00019549,2]
[359693074,1746258632508,-210.48680741,0.00019549,2]
[359693077,1746258632761,-89.51319259,0.00019549,2]
[359693078,1746258632771,-1200.0,0.00019549,2]
[359693079,1746258632780,-300.0,0.00019549,2]
[359693080,1746258632791,-2556.43554943,0.0001955,2]
[359693081,1746258632804,-7348.00141315,0.0001955,2]
[359693082,1746258632816,-270.1457,0.00019691,2]
[359693083,1746258632825,-1115.0421,0.00019691,2]
[359693084,1746258632835,-269.01077685,0.00019691,2]
[359693085,1746258632852,-2230.98922315,0.00019691,2]
[359693086,1746258632863,-3148.23653405,0.00019691,2]
[359693087,1746258632872,-1991.98683494,0.00019691,2]
[359693090,1746258638313,-1888.71149876,0.00019691,2]
[359693091,1746258638323,-163.81347884,0.00019691,2]
[359693092,1746258638332,-157.78413148,0.00019691,2]
[359693093,1746258638341,-196.66214302,0.00019692,2]
[359693094,1746258638350,-207.4,0.00019704,2]
[359693095,1746258638359,-485.47249947,0.00019705,2]
[359693096,1746258638368,-500.0,0.00019712,2]
[359693097,1746258638377,-810.46483199,0.00019712,2]
[359693098,1746258638386,-810.46483199,0.00019712,2]
[359693099,1746258638395,-810.46483199,0.00019712,2]
[359693100,1746258638404,-810.46483199,0.00019712,2]
[359693101,1746258638415,-810.46483199,0.00019712,2]
[359693102,1746258638424,-810.46483199,0.00019712,2]
[359693103,1746258638433,-810.46483199,0.00019712,2]
[359693104,1746258638443,-810.46483199,0.00019712,2]
[359693105,1746258638454,-810.46483199,0.00019712,2]
[359693106,1746258638463,-810.46483199,0.00019712,2]
[359693107,1746258638472,-810.46483199,0.00019712,2]
[359693108,1746258638482,-810.46483199,0.00019712,2]
[359693109,1746258638491,-810.46483199,0.00019712,2]
[359693110,1746258638500,-810.46483199,0.00019712,2]
[359693111,1746258638509,-810.46483199,0.00019712,2]
[359693112,1746258638519,-810.46483199,0.00019712,2]
[359693113,1746258638528,-810.46483199,0.00019712,2]
[359693114,1746258638537,-810.46483199,0.00019712,2]
[359693115,1746258638547,-810.46483199,0.00019712,2]
[359693116,1746258638556,-810.46483199,0.00019712,2]
[359693117,1746258638565,-810.46483199,0.00019712,2]
[359693118,1746258638574,-810.46483199,0.00019712,2]
[359693119,1746258638583,-810.46483199,0.00019712,2]
[359693120,1746258638592,-810.46483199,0.00019712,2]
[359693122,1746258638601,-810.46483199,0.00019712,2]
[359693123,1746258638610,-810.46483199,0.00019712,2]
[359693125,1746258638619,-810.46483199,0.00019712,2]
[359693127,1746258638628,-810.46483199,0.00019712,2]
[359693128,1746258638637,-810.46483199,0.00019712,2]
[359693129,1746258638647,-3148.23653401,0.00019714,2]
[359693130,1746258638656,-3880.69833364,0.00019714,2]
[359693131,1746258638665,-2056.37,0.00019716,2]
[359693132,1746258638674,-3790.3668553,0.00019716,2]
[359693133,1746258638686,-6049.0431447,0.00019716,2]
[359693134,1746258638695,-15347.64,0.00019716,2]
[359693135,1746258638704,-3148.23653401,0.00019737,2]
[359693136,1746258638714,-3880.69833364,0.00019737,2]
[359693137,1746258638724,-500.0,0.00019743,2]
[359693138,1746258638737,-150.0,0.00019743,2]
[359693139,1746258638746,-500.0,0.00019743,2]
[359693140,1746258638755,-157.78413144,0.00019743,2]
[359693141,1746258638764,-3148.23653401,0.00019761,2]
[359693142,1746258638775,-3880.69833364,0.00019761,2]
[359693143,1746258638785,-163.81347882,0.00019761,2]
[359693144,1746258638794,-503.83950627,0.00019773,2]
[359693145,1746258638803,-162.45076163,0.00019773,2]
[359693146,1746258638814,-500.0,0.00019773,2]
[359693147,1746258638823,-500.0,0.00019773,2]
[359693148,1746258638833,-500.0,0.00019773,2]
[359693149,1746258638843,-500.0,0.00019773,2]
[359693150,1746258638852,-500.0,0.00019773,2]
[359693151,1746258638861,-500.0,0.00019773,2]
[359693152,1746258638871,-500.0,0.00019773,2]
[359693153,1746258638881,-502.724134,0.00019773,2]
[359693154,1746258638891,-166.33896148,0.00019774,2]
[359693155,1746258638900,-151.0,0.00019779,2]
[359693156,1746258638910,-668.65185757,0.00019779,2]
[359693157,1746258638919,-500.0,0.0001978,2]
[359693158,1746258638928,-500.0,0.0001978,2]
[359693159,1746258638938,-150.0,0.0001978,2]
[359693160,1746258638947,-500.0,0.0001978,2]
[359693162,1746258638956,-1000.0,0.00019781,2]
[359693164,1746258638965,-1000.0,0.00019781,2]
[359693166,1746258638974,-1000.0,0.00019781,2]
[359693168,1746258638984,-1000.0,0.00019781,2]
[359693170,1746258638993,-1000.0,0.00019781,2]
[359693172,1746258639003,-1000.0,0.00019781,2]
[359693174,1746258639012,-1000.0,0.00019781,2]
[359693175,1746258639021,-1000.0,0.00019781,2]
[359693177,1746258639030,-1000.0,0.00019781,2]
[359693179,1746258639040,-1000.0,0.00019781,2]
[359693181,1746258639049,-1000.0,0.00019781,2]
[359693183,1746258639059,-1000.0,0.00019781,2]
[359693185,1746258639068,-1000.0,0.00019781,2]
[359693187,1746258639078,-3148.23653401,0.00019784,2]
[359693189,1746258639087,-3880.69833364,0.00019784,2]
[359693191,1746258639097,-177.36160771,0.0001979,2]
[359693193,1746258639107,-264.92374243,0.0001979,2]
[359693195,1746258639116,-164.6522629,0.0001979,2]
[359693197,1746258639126,-500.0,0.0001979,2]
[359693199,1746258639135,-192.85624087,0.0001979,2]
[359693201,1746258639145,-431.41557159,0.0001979,2]
[359693203,1746258639154,-500.0,0.0001979,2]
[359693205,1746258639164,-477.50980695,0.0001979,2]
[359693207,1746258639177,-22.49019305,0.0001979,2]
[359693209,1746258639187,-500.0,0.0001979,2]
[359693211,1746258639196,-500.0,0.0001979,2]
[359693213,1746258639205,-500.0,0.0001979,2]
[359693215,1746258639215,-500.0,0.0001979,2]
[359693239,1746258639441,-150.0,0.0001979,2]
[359693241,1746258639451,-450.0,0.0001979,2]
[359693243,1746258639460,-515.84712983,0.0001979,2]
[359693245,1746258639470,-450.0,0.0001979,2]
[359693247,1746258639479,-450.0,0.0001979,2]
[359693249,1746258639489,-450.0,0.0001979,2]
[359693251,1746258639498,-450.0,0.0001979,2]
[359693253,1746258639507,-450.0,0.0001979,2]
[359693255,1746258639516,-450.0,0.0001979,2]
[359693257,1746258639525,-450.0,0.0001979,2]
[359693259,1746258639534,-450.0,0.0001979,2]
[359693260,1746258639543,-450.0,0.0001979,2]
[359693262,1746258639552,-506.20979485,0.0001979,2]
[359693264,1746258639562,-665.91,0.0001979,2]
[359693266,1746258639571,-450.0,0.0001979,2]
[359693268,1746258639579,-450.0,0.0001979,2]
[359693270,1746258639589,-450.0,0.0001979,2]
[359693272,1746258639598,-450.0,0.0001979,2]
[359693274,1746258639607,-514.19,0.0001979,2]
[359693276,1746258639616,-460.27,0.0001979,2]
[359693278,1746258639626,-4530.27,0.0001979,2]
[359693280,1746258639635,-564.75,0.0001979,2]
[359693282,1746258639644,-450.0,0.0001979,2]
[359693284,1746258639654,-1039.23,0.0001979,2]
[359693286,1746258639663,-450.0,0.0001979,2]
[359693288,1746258639671,-476.21,0.0001979,2]
[359693290,1746258639681,-450.0,0.0001979,2]
[359693292,1746258639690,-500.0,0.0001979,2]
[359693294,1746258639699,-450.0,0.0001979,2]
[359693296,1746258639709,-450.0,0.0001979,2]
[359693298,1746258639718,-451.32799872,0.0001979,2]
[359693300,1746258639727,-550.33,0.0001979,2]
[359693302,1746258639736,-455.27226844,0.0001979,2]
[359693304,1746258639745,-450.0,0.0001979,2]
[359693305,1746258639754,-560.51923359,0.0001979,2]
[359693307,1746258639764,-544.31030618,0.0001979,2]
[359693309,1746258639774,-450.0,0.0001979,2]
[359693311,1746258639784,-1870.37,0.0001979,2]
[359693313,1746258639794,-500.0,0.0001979,2]
[359693315,1746258639803,-174.264355,0.0001979,2]
[359693317,1746258639813,-525.8500197,0.0001979,2]
[359693319,1746258639823,-450.0,0.0001979,2]
[359693321,1746258639831,-450.0,0.0001979,2]
[359693323,1746258639840,-450.0,0.0001979,2]
[359693325,1746258639849,-455.40812121,0.0001979,2]
[359693327,1746258639858,-450.0,0.0001979,2]
[359693329,1746258639867,-450.0,0.0001979,2]
[359693330,1746258639878,-450.0,0.0001979,2]
[359693332,1746258639888,-450.0,0.0001979,2]
[359693334,1746258639897,-450.0,0.0001979,2]
[359693336,1746258639906,-450.0,0.0001979,2]
[359693338,1746258639916,-450.0,0.0001979,2]
[359693340,1746258639926,-930.82777,0.0001979,2]
[359693342,1746258639935,-462.39,0.0001979,2]
[359693344,1746258639944,-450.0,0.0001979,2]
[359693346,1746258639953,-450.0,0.0001979,2]
[359693348,1746258639963,-450.0,0.0001979,2]
[359693350,1746258639972,-520.50950275,0.0001979,2]
[359693352,1746258639982,-450.0,0.0001979,2]
[359693354,1746258639991,-484.64719375,0.00019791,2]
[359693356,1746258640000,-450.0,0.00019791,2]
[359693358,1746258640009,-450.0,0.00019791,2]
[359693360,1746258640018,-450.0,0.00019791,2]
[359693362,1746258640027,-450.0,0.00019791,2]
[359693363,1746258640038,-471.31,0.00019791,2]
[359693365,1746258640047,-450.0,0.00019791,2]
[359693367,1746258640056,-450.0,0.00019791,2]
[359693369,1746258640065,-414.13707132,0.00019791,2]
[359693371,1746258640074,-450.0,0.00019791,2]
[359693373,1746258640083,-450.0,0.00019791,2]
[359693375,1746258640093,-450.0,0.00019791,2]
[359693377,1746258640102,-450.0,0.00019791,2]
[359693379,1746258640111,-450.0,0.00019791,2]
[359693381,1746258640121,-450.0,0.00019791,2]
[359693383,1746258640130,-450.0,0.00019791,2]
[359693385,1746258640139,-387.79334774,0.00019791,2]
[359693387,1746258640149,-450.0,0.00019791,2]
[359693389,1746258640158,-450.0,0.00019791,2]
[359693391,1746258640167,-450.0,0.00019791,2]
[359693393,1746258640177,-561.14347333,0.00019791,2]
[359693395,1746258640186,-782.34,0.00019791,2]
[359693397,1746258640195,-450.0,0.00019791,2]
[359693398,1746258640204,-450.0,0.00019791,2]
[359693400,1746258640214,-450.0,0.00019791,2]
[359693402,1746258640223,-450.0,0.00019791,2]
[359693404,1746258640233,-499.40560064,0.00019791,2]
[359693406,1746258640242,-450.0,0.00019791,2]
[359693408,1746258640251,-450.0,0.00019791,2]
[359693410,1746258640260,-450.0,0.00019791,2]
[359693412,1746258640269,-450.0,0.00019791,2]
[359693414,1746258640278,-695.12,0.00019791,2]
[359693416,1746258640287,-450.0,0.00019791,2]
[359693418,1746258640297,-511.76880943,0.00019791,2]
[359693420,1746258640307,-450.0,0.00019791,2]
[359693422,1746258640316,-450.0,0.00019791,2]
[359693424,1746258640325,-510.61480129,0.00019791,2]
[359693426,1746258640334,-450.0,0.00019791,2]
[359693428,1746258640343,-450.0,0.00019791,2]
[359693430,1746258640352,-596.2,0.00019791,2]
[359693432,1746258640361,-450.0,0.00019791,2]
[359693434,1746258640370,-521.04121212,0.00019791,2]
[359693436,1746258640380,-450.0,0.00019791,2]
[359693438,1746258640389,-450.0,0.00019791,2]
[359693440,1746258640399,-450.0,0.00019791,2]
[359693442,1746258640408,-475.48086145,0.00019791,2]
[359693444,1746258640417,-274.9018159,0.00019791,2]
[359693446,1746258640427,-450.0,0.00019791,2]
[359693448,1746258640436,-450.0,0.00019791,2]
[359693450,1746258640445,-450.0,0.00019791,2]
[359693452,1746258640454,-459.49309321,0.00019791,2]
[359693454,1746258640464,-497.05,0.00019791,2]
[359693455,1746258640475,-450.0,0.00019791,2]
[359693457,1746258640485,-450.0,0.00019791,2]
[359693459,1746258640496,-530.0,0.00019791,2]
[359693461,1746258640505,-450.0,0.00019791,2]
[359693463,1746258640514,-150.0,0.00019791,2]
[359693465,1746258640524,-450.0,0.00019791,2]
[359693467,1746258640533,-500.0,0.00019791,2]
[359693469,1746258640542,-450.0,0.00019791,2]
[359693471,1746258640551,-500.0,0.00019791,2]
[359693473,1746258640560,-450.0,0.00019791,2]
[359693476,1746258640570,-450.0,0.00019791,2]
[359693477,1746258640579,-547.79685938,0.00019791,2]
[359693479,1746258640588,-450.0,0.00019791,2]
[359693481,1746258640596,-150.0,0.00019791,2]
[359693483,1746258640606,-500.0,0.00019791,2]
[359693485,1746258640615,-150.0,0.00019791,2]
[359693487,1746258640624,-450.0,0.00019791,2]
[359693489,1746258640633,-500.0,0.00019791,2]
[359693491,1746258640642,-450.0,0.00019791,2]
[359693493,1746258640651,-490.74,0.00019791,2]
[359693495,1746258640661,-453.41588437,0.00019791,2]
[359693497,1746258640670,-450.0,0.00019791,2]
[359693499,1746258640679,-450.0,0.00019791,2]
[359693501,1746258640688,-450.0,0.00019791,2]
[359693503,1746258640698,-450.0,0.00019791,2]
[359693505,1746258640707,-450.0,0.00019791,2]
[359693507,1746258640716,-471.84783515,0.00019791,2]
[359693509,1746258640726,-450.0,0.00019791,2]
[359693512,1746258640740,-450.0,0.00019791,2]
[359693514,1746258640749,-515.40553369,0.00019791,2]
[359693515,1746258640759,-514.41169411,0.00019791,2]
[359693516,1746258640768,-506.05120852,0.00019791,2]
[359693517,1746258640778,-215.5207212,0.00019791,2]
[359693518,1746258640788,-514.50702732,0.00019791,2]
[359693519,1746258640797,-450.0,0.00019791,2]
[359693520,1746258640807,-450.0,0.00019791,2]
[359693521,1746258640817,-510.19635744,0.00019791,2]
[359693522,1746258640826,-450.0,0.00019791,2]
[359693523,1746258640835,-457.34400918,0.00019791,2]
[359693524,1746258640844,-450.0,0.00019791,2]
[359693525,1746258640853,-450.0,0.00019791,2]
[359693526,1746258640862,-450.0,0.00019791,2]
[359693527,1746258640871,-451.53070679,0.00019791,2]
[359693528,1746258640880,-513.8894992,0.00019791,2]
[359693529,1746258640889,-450.0,0.00019791,2]
[359693530,1746258640899,-450.0,0.00019791,2]
[359693531,1746258640908,-455.23134526,0.00019791,2]
[359693532,1746258640918,-454.35102421,0.00019791,2]
[359693533,1746258640927,-450.0,0.00019791,2]
[359693534,1746258640936,-450.0,0.00019791,2]
[359693535,1746258640946,-500.0,0.00019791,2]
[359693536,1746258640954,-456.56275952,0.00019791,2]
[359693537,1746258640963,-456.82,0.00019791,2]
[359693538,1746258640973,-498.02399997,0.00019791,2]
[359693539,1746258640981,-500.0,0.00019791,2]
[359693540,1746258640990,-505.01937858,0.00019791,2]
[359693541,1746258640999,-450.0,0.00019791,2]
[359693542,1746258641009,-450.0,0.00019791,2]
[359693543,1746258641018,-450.0,0.00019791,2]
[359693544,1746258641027,-450.0,0.00019791,2]
[359693545,1746258641036,-450.0,0.00019791,2]
[359693546,1746258641045,-450.0,0.00019791,2]
[359693547,1746258641054,-467.78856313,0.00019791,2]
[359693549,1746258641063,-450.0,0.00019791,2]
[359693550,1746258641072,-457.17293722,0.00019791,2]
[359693552,1746258641082,-450.0,0.00019791,2]
[359693554,1746258641091,-453.85123615,0.00019791,2]
[359693555,1746258641101,-523.32970002,0.00019791,2]
[359693556,1746258641110,-477.0270328,0.00019791,2]
[359693557,1746258641120,-579.16724346,0.00019791,2]
[359693558,1746258641129,-450.0,0.00019791,2]
[359693559,1746258641139,-461.06911883,0.00019791,2]
[359693560,1746258641148,-527.90487769,0.00019791,2]
[359693561,1746258641158,-518.78990678,0.00019791,2]
[359693562,1746258641168,-450.0,0.00019791,2]
[359693563,1746258641177,-454.61979432,0.00019791,2]
[359693564,1746258641187,-456.32272671,0.00019791,2]
[359693565,1746258641196,-450.0,0.00019791,2]
[359693566,1746258641205,-518.76038802,0.00019791,2]
[359693568,1746258641214,-466.9503393,0.00019791,2]
[359693570,1746258641223,-467.60509738,0.00019791,2]
[359693572,1746258641234,-267.1025286,0.00019791,2]
[359693573,1746258641243,-471.10899562,0.00019791,2]
[359693574,1746258641252,-450.0,0.00019791,2]
[359693575,1746258641261,-517.02810377,0.00019791,2]
[359693576,1746258641270,-482.56745021,0.00019791,2]
[359693577,1746258641279,-451.42882627,0.00019791,2]
[359693578,1746258641288,-450.0,0.00019791,2]
[359693579,1746258641297,-517.49954535,0.00019791,2]
[359693580,1746258641306,-450.0,0.00019791,2]
[359693581,1746258641314,-450.0,0.00019791,2]
[359693582,1746258641323,-450.0,0.00019791,2]
[359693583,1746258641332,-450.0,0.00019791,2]
[359693584,1746258641341,-450.0,0.00019791,2]
[359693585,1746258641349,-525.60828032,0.00019791,2]
[359693586,1746258641358,-183.76879224,0.00019791,2]
[359693588,1746258641367,-500.0,0.00019791,2]
[359693590,1746258641376,-460.43837064,0.00019791,2]
[359693591,1746258641385,-475.41225087,0.00019791,2]
[359693592,1746258641394,-500.0,0.00019791,2]
[359693593,1746258641403,-471.68863699,0.00019791,2]
[359693594,1746258641412,-546.0880323,0.00019791,2]
[359693595,1746258641421,-450.0,0.00019791,2]
[359693596,1746258641430,-543.2446752,0.00019791,2]
[359693597,1746258641439,-462.83160153,0.00019791,2]
[359693598,1746258641448,-462.88645905,0.00019791,2]
[359693599,1746258641458,-465.67968816,0.00019791,2]
[359693600,1746258641467,-599.56960412,0.00019791,2]